[Event "Titled Tuesday Blitz July 05 Late 2022"]
[White "Preotu, Razvan"]
[Black "Domingo Nunez, Alejandro"]
[WhiteFideId "2613280"]
[BlackFideId "22245561"]
[WhiteElo "2407"]
[BlackElo "2222"]
[Result "1-0"]
[Round "11"]
[TimeControl "180+1"]
[Date "2022.07.05"]
[WhiteClock "0:00:20"]
[BlackClock "0:00:08"]

1. e4 {[%clk 0:03:00]}  g6 {[%clk 0:02:59]} 2. d4 {[%clk 0:03:00]}  Bg7 {[%clk 0:02:56]} 3. Nc3 {[%clk 0:03:00]}  c6 {[%clk 0:02:56]} 4. Be3 {[%clk 0:02:58]}  d5 {[%clk 0:02:57]} 5. e5 {[%clk 0:02:58]}  Nh6 {[%clk 0:02:57]} 6. f4 {[%clk 0:02:54]}  f6 {[%clk 0:02:56]} 7. Qd2 {[%clk 0:02:52]}  Ng4 {[%clk 0:02:55]} 8. O-O-O {[%clk 0:02:52]}  O-O {[%clk 0:02:51]} 9. Kb1 {[%clk 0:02:42]}  Bh6 {[%clk 0:02:30]} 10. g3 {[%clk 0:02:25]}  Qb6 {[%clk 0:02:27]} 11. Nf3 {[%clk 0:02:21]}  Nxe3 {[%clk 0:02:10]} 12. Qxe3 {[%clk 0:02:22]}  Bg4 {[%clk 0:02:10]} 13. Be2 {[%clk 0:02:20]}  Bxf3 {[%clk 0:01:45]} 14. Bxf3 {[%clk 0:02:20]}  fxe5 {[%clk 0:01:45]} 15. Qxe5 {[%clk 0:02:19]}  Bg7 {[%clk 0:01:27]} 16. Qxe7 {[%clk 0:01:44]}  Na6 {[%clk 0:01:23]} 17. Na4 {[%clk 0:01:33]}  Qb5 {[%clk 0:01:17]} 18. Qa3 {[%clk 0:01:08]}  Rae8 {[%clk 0:01:10]} 19. Qb3 {[%clk 0:01:01]}  Qxb3 {[%clk 0:00:56]} 20. axb3 {[%clk 0:01:02]}  Re3 {[%clk 0:00:56]} 21. Bg4 {[%clk 0:00:58]}  h5 {[%clk 0:00:56]} 22. Bh3 {[%clk 0:00:57]}  Rfe8 {[%clk 0:00:52]} 23. c3 {[%clk 0:00:34]}  Nc7 {[%clk 0:00:28]} 24. Nc5 {[%clk 0:00:34]}  Nb5 {[%clk 0:00:13]} 25. Nxb7 {[%clk 0:00:23]}  Rb8 {[%clk 0:00:13]} 26. Nc5 {[%clk 0:00:21]}  Nd6 {[%clk 0:00:11]} 27. Rhe1 {[%clk 0:00:20]}  Rbe8 {[%clk 0:00:10]} 28. Be6+ {[%clk 0:00:20]}  R3xe6 {[%clk 0:00:07]} 29. Nxe6 {[%clk 0:00:21]}  Ne4 {[%clk 0:00:08]} 30. Nc5 {[%clk 0:00:20]} 1-0


[Site "https://www.chess.com"]

[Event "Titled Tuesday Blitz July 05 Late 2022"]
[White "Riehle, Marco"]
[Black "Wieczorek, Oskar"]
[WhiteFideId "12904392"]
[BlackFideId "1133950"]
[WhiteElo "2462"]
[BlackElo "2330"]
[Result "1-0"]
[Round "11"]
[TimeControl "180+1"]
[Date "2022.07.05"]
[WhiteClock "0:00:13"]
[BlackClock "0:00:01"]

1. e4 {[%clk 0:03:00]}  c5 {[%clk 0:02:59]} 2. a3 {[%clk 0:02:56]}  g6 {[%clk 0:02:53]} 3. h4 {[%clk 0:02:55]}  h5 {[%clk 0:02:44]} 4. Nc3 {[%clk 0:02:54]}  Bg7 {[%clk 0:02:44]} 5. Bc4 {[%clk 0:02:49]}  Nc6 {[%clk 0:02:42]} 6. d3 {[%clk 0:02:46]}  d6 {[%clk 0:02:41]} 7. Nf3 {[%clk 0:02:44]}  Bg4 {[%clk 0:02:41]} 8. Bg5 {[%clk 0:02:42]}  Nf6 {[%clk 0:02:32]} 9. Qd2 {[%clk 0:02:40]}  a6 {[%clk 0:02:31]} 10. O-O-O {[%clk 0:02:38]}  e6 {[%clk 0:02:10]} 11. Rde1 {[%clk 0:02:34]}  Bxf3 {[%clk 0:02:10]} 12. gxf3 {[%clk 0:02:35]}  Nd4 {[%clk 0:02:03]} 13. Qe3 {[%clk 0:02:28]}  b5 {[%clk 0:02:01]} 14. Ba2 {[%clk 0:02:26]}  Qc7 {[%clk 0:01:39]} 15. f4 {[%clk 0:02:18]}  Ng4 {[%clk 0:01:33]} 16. Qd2 {[%clk 0:02:10]}  b4 {[%clk 0:01:21]} 17. axb4 {[%clk 0:02:09]}  cxb4 {[%clk 0:01:21]} 18. Ne2 {[%clk 0:02:09]}  b3 {[%clk 0:01:09]} 19. Bb1 {[%clk 0:01:37]}  bxc2 {[%clk 0:01:07]} 20. Ba2 {[%clk 0:01:34]}  Rb8 {[%clk 0:00:46]} 21. Nxd4 {[%clk 0:01:33]}  Bxd4 {[%clk 0:00:46]} 22. b3 {[%clk 0:01:33]}  Qc5 {[%clk 0:00:36]} 23. Qxc2 {[%clk 0:01:31]}  Qa3+ {[%clk 0:00:34]} 24. Kd2 {[%clk 0:01:31]}  O-O {[%clk 0:00:35]} 25. Rc1 {[%clk 0:01:22]}  Bxf2 {[%clk 0:00:32]} 26. f5 {[%clk 0:01:16]}  exf5 {[%clk 0:00:32]} 27. exf5 {[%clk 0:01:17]}  Rfe8 {[%clk 0:00:24]} 28. fxg6 {[%clk 0:01:13]}  Qa5+ {[%clk 0:00:23]} 29. b4 {[%clk 0:01:11]}  Qxb4+ {[%clk 0:00:22]} 30. Qc3 {[%clk 0:01:11]}  Qb2+ {[%clk 0:00:13]} 31. Rc2 {[%clk 0:01:04]}  Qxc3+ {[%clk 0:00:13]} 32. Kxc3 {[%clk 0:01:05]}  Rbc8+ {[%clk 0:00:11]} 33. Kb4 {[%clk 0:01:01]}  Rxc2 {[%clk 0:00:06]} 34. gxf7+ {[%clk 0:01:00]}  Kf8 {[%clk 0:00:06]} 35. fxe8=Q+ {[%clk 0:01:01]}  Kxe8 {[%clk 0:00:07]} 36. Bc4 {[%clk 0:01:01]}  Ne5 {[%clk 0:00:05]} 37. Bxa6 {[%clk 0:00:59]}  Bd4 {[%clk 0:00:05]} 38. Bb5+ {[%clk 0:00:54]}  Kf7 {[%clk 0:00:04]} 39. Rf1+ {[%clk 0:00:55]}  Ke6 {[%clk 0:00:05]} 40. Rf6+ {[%clk 0:00:50]}  Kd5 {[%clk 0:00:02]} 41. Rf5 {[%clk 0:00:31]}  Rb2+ {[%clk 0:00:03]} 42. Ka4 {[%clk 0:00:29]}  Kc5 {[%clk 0:00:03]} 43. Be8 {[%clk 0:00:26]}  Ra2+ {[%clk 0:00:02]} 44. Kb3 {[%clk 0:00:24]}  Rb2+ {[%clk 0:00:02]} 45. Ka4 {[%clk 0:00:24]}  Ra2+ {[%clk 0:00:01]} 46. Kb3 {[%clk 0:00:24]}  Rb2+ {[%clk 0:00:02]} 47. Ka3 {[%clk 0:00:25]}  Rb8 {[%clk 0:00:02]} 48. Bxh5 {[%clk 0:00:17]}  Ra8+ {[%clk 0:00:01]} 49. Kb3 {[%clk 0:00:17]}  Rb8+ {[%clk 0:00:02]} 50. Kc2 {[%clk 0:00:17]}  Rb2+ {[%clk 0:00:03]} 51. Kc1 {[%clk 0:00:18]}  Kb4 {[%clk 0:00:03]} 52. Bd2+ {[%clk 0:00:16]}  Kb3 {[%clk 0:00:04]} 53. Bf7+ {[%clk 0:00:16]}  Ka3 {[%clk 0:00:03]} 54. Bc4 {[%clk 0:00:14]}  Ra2 {[%clk 0:00:02]} 55. Bxa2 {[%clk 0:00:14]}  Nxd3+ {[%clk 0:00:01]} 56. Kc2 {[%clk 0:00:13]} 1-0


[Site "https://www.chess.com"]

[Event "Titled Tuesday Blitz July 05 Late 2022"]
[White "Romero Ruscalleda, Josep"]
[Black "Leisch, Lukas"]
[WhiteFideId "2231859"]
[BlackFideId "1632094"]
[WhiteElo "2368"]
[BlackElo "2216"]
[Result "0-1"]
[Round "11"]
[TimeControl "180+1"]
[Date "2022.07.06"]
[WhiteClock "0:00:16"]
[BlackClock "0:00:08"]

1. e4 {[%clk 0:03:00]}  e6 {[%clk 0:03:00]} 2. d4 {[%clk 0:03:00]}  d5 {[%clk 0:03:00]} 3. e5 {[%clk 0:03:01]}  c5 {[%clk 0:03:00]} 4. c3 {[%clk 0:03:01]}  Nc6 {[%clk 0:03:01]} 5. Be3 {[%clk 0:03:00]}  Nh6 {[%clk 0:03:00]} 6. Nf3 {[%clk 0:02:59]}  Nf5 {[%clk 0:03:00]} 7. Bd3 {[%clk 0:02:59]}  cxd4 {[%clk 0:02:55]} 8. cxd4 {[%clk 0:02:55]}  Bb4+ {[%clk 0:02:55]} 9. Nc3 {[%clk 0:02:54]}  Nxe3 {[%clk 0:02:49]} 10. fxe3 {[%clk 0:02:54]}  f5 {[%clk 0:02:39]} 11. exf6 {[%clk 0:02:53]}  gxf6 {[%clk 0:02:38]} 12. O-O {[%clk 0:02:40]}  Qe7 {[%clk 0:02:38]} 13. Rc1 {[%clk 0:02:33]}  Bd7 {[%clk 0:02:37]} 14. Rf2 {[%clk 0:02:26]}  O-O-O {[%clk 0:02:29]} 15. e4 {[%clk 0:02:19]}  dxe4 {[%clk 0:02:11]} 16. Nxe4 {[%clk 0:02:14]}  Kb8 {[%clk 0:02:09]} 17. a3 {[%clk 0:01:57]}  Bd6 {[%clk 0:02:04]} 18. Bc4 {[%clk 0:01:40]}  Rhg8 {[%clk 0:01:49]} 19. d5 {[%clk 0:01:32]}  Bf4 {[%clk 0:01:38]} 20. dxc6 {[%clk 0:01:23]}  Bxc6 {[%clk 0:01:38]} 21. Ned2 {[%clk 0:01:21]}  Be3 {[%clk 0:01:25]} 22. Qe2 {[%clk 0:01:18]}  Qc5 {[%clk 0:01:16]} 23. b4 {[%clk 0:01:04]}  Rxd2 {[%clk 0:00:06]} 24. bxc5 {[%clk 0:00:43]}  Rxe2 {[%clk 0:00:06]} 25. Bxe2 {[%clk 0:00:42]}  Bxc1 {[%clk 0:00:06]} 26. Rf1 {[%clk 0:00:38]}  Bxa3 {[%clk 0:00:06]} 27. Re1 {[%clk 0:00:25]}  Bxc5+ {[%clk 0:00:06]} 28. Kf1 {[%clk 0:00:25]}  e5 {[%clk 0:00:06]} 29. Bd3 {[%clk 0:00:24]}  h5 {[%clk 0:00:04]} 30. Bh7 {[%clk 0:00:22]}  Rg7 {[%clk 0:00:04]} 31. Bf5 {[%clk 0:00:23]}  Kc7 {[%clk 0:00:04]} 32. Nh4 {[%clk 0:00:21]}  Bd7 {[%clk 0:00:02]} 33. g3 {[%clk 0:00:20]}  Bxf5 {[%clk 0:00:02]} 34. Nxf5 {[%clk 0:00:20]}  Rd7 {[%clk 0:00:03]} 35. Rb1 {[%clk 0:00:20]}  Kc6 {[%clk 0:00:03]} 36. Kg2 {[%clk 0:00:20]}  b5 {[%clk 0:00:03]} 37. h3 {[%clk 0:00:17]}  a5 {[%clk 0:00:04]} 38. g4 {[%clk 0:00:17]}  hxg4 {[%clk 0:00:05]} 39. hxg4 {[%clk 0:00:17]}  a4 {[%clk 0:00:05]} 40. Ng3 {[%clk 0:00:15]}  b4 {[%clk 0:00:06]} 41. Ne4 {[%clk 0:00:16]}  a3 {[%clk 0:00:05]} 42. Nxf6 {[%clk 0:00:16]}  Rd2+ {[%clk 0:00:05]} 43. Kf3 {[%clk 0:00:15]}  a2 {[%clk 0:00:06]} 44. Ra1 {[%clk 0:00:15]}  Bd4 {[%clk 0:00:06]} 45. Rxa2 {[%clk 0:00:15]}  Rxa2 {[%clk 0:00:06]} 46. g5 {[%clk 0:00:16]}  b3 {[%clk 0:00:05]} 47. Ne4 {[%clk 0:00:15]}  b2 {[%clk 0:00:05]} 48. Nd2 {[%clk 0:00:15]}  Ra1 {[%clk 0:00:04]} 49. g6 {[%clk 0:00:13]}  b1=Q {[%clk 0:00:04]} 50. Nxb1 {[%clk 0:00:13]}  Rxb1 {[%clk 0:00:05]} 51. Ke4 {[%clk 0:00:13]}  Rg1 {[%clk 0:00:04]} 52. Kf5 {[%clk 0:00:14]}  Rxg6 {[%clk 0:00:05]} 53. Kxg6 {[%clk 0:00:14]}  e4 {[%clk 0:00:06]} 54. Kf5 {[%clk 0:00:15]}  e3 {[%clk 0:00:07]} 55. Ke4 {[%clk 0:00:15]}  e2 {[%clk 0:00:07]} 56. Kxd4 {[%clk 0:00:16]}  e1=Q {[%clk 0:00:07]} 57. Kd3 {[%clk 0:00:17]}  Qe5 {[%clk 0:00:07]} 58. Kc4 {[%clk 0:00:17]}  Qf4+ {[%clk 0:00:08]} 59. Kd3 {[%clk 0:00:17]}  Kc5 {[%clk 0:00:08]} 60. Ke2 {[%clk 0:00:17]}  Qg3 {[%clk 0:00:08]} 61. Kd2 {[%clk 0:00:16]}  Kd4 {[%clk 0:00:07]} 62. Ke2 {[%clk 0:00:16]}  Qg2+ {[%clk 0:00:07]} 63. Kd1 {[%clk 0:00:16]}  Kc3 {[%clk 0:00:08]} 64. Kc1 {[%clk 0:00:16]}  Qf1# {[%clk 0:00:08]} 0-1


[Site "https://www.chess.com"]

[Event "Titled Tuesday Blitz July 05 Late 2022"]
[White "Rosen, Eric"]
[Black "Omariev, Maksim"]
[WhiteFideId "2032562"]
[BlackFideId "4193423"]
[WhiteElo "2362"]
[BlackElo "2461"]
[Result "0-1"]
[Round "11"]
[TimeControl "180+1"]
[Date "2022.07.05"]
[WhiteClock "0:00:03"]
[BlackClock "0:00:04"]

1. d4 {[%clk 0:03:00]}  h5 {[%clk 0:02:56]} 2. e4 {[%clk 0:02:56]}  h4 {[%clk 0:02:57]} 3. Nc3 {[%clk 0:02:50]}  c6 {[%clk 0:02:55]} 4. Bd3 {[%clk 0:02:32]}  d5 {[%clk 0:02:53]} 5. e5 {[%clk 0:02:26]}  h3 {[%clk 0:02:53]} 6. g3 {[%clk 0:02:25]}  Nh6 {[%clk 0:02:46]} 7. f4 {[%clk 0:02:21]}  Bg4 {[%clk 0:02:43]} 8. Nce2 {[%clk 0:02:20]}  e6 {[%clk 0:02:41]} 9. c3 {[%clk 0:02:19]}  c5 {[%clk 0:02:39]} 10. Be3 {[%clk 0:02:16]}  Qb6 {[%clk 0:02:00]} 11. b3 {[%clk 0:01:46]}  Nc6 {[%clk 0:01:56]} 12. Qd2 {[%clk 0:01:38]}  Rc8 {[%clk 0:01:45]} 13. Rb1 {[%clk 0:01:31]}  Be7 {[%clk 0:01:35]} 14. Kf2 {[%clk 0:01:22]}  Nf5 {[%clk 0:01:27]} 15. Nf3 {[%clk 0:01:15]}  O-O {[%clk 0:00:46]} 16. Rhd1 {[%clk 0:01:13]}  Rc7 {[%clk 0:00:42]} 17. a3 {[%clk 0:00:44]}  a5 {[%clk 0:00:40]} 18. Rb2 {[%clk 0:00:28]}  Rfc8 {[%clk 0:00:40]} 19. Bb1 {[%clk 0:00:28]}  Nxe3 {[%clk 0:00:22]} 20. Qxe3 {[%clk 0:00:27]}  cxd4 {[%clk 0:00:20]} 21. cxd4 {[%clk 0:00:23]}  Bxa3 {[%clk 0:00:19]} 22. Ra2 {[%clk 0:00:21]}  Be7 {[%clk 0:00:12]} 23. Ra1 {[%clk 0:00:11]}  Nb4 {[%clk 0:00:10]} 24. f5 {[%clk 0:00:09]}  exf5 {[%clk 0:00:07]} 25. Qf4 {[%clk 0:00:08]}  Nc2 {[%clk 0:00:06]} 26. Bxc2 {[%clk 0:00:07]}  Rxc2 {[%clk 0:00:07]} 27. Rab1 {[%clk 0:00:06]}  Qb5 {[%clk 0:00:07]} 28. Rd2 {[%clk 0:00:06]}  Rxd2 {[%clk 0:00:05]} 29. Qxd2 {[%clk 0:00:07]}  Bb4 {[%clk 0:00:05]} 30. Qe3 {[%clk 0:00:06]}  Rc2 {[%clk 0:00:05]} 31. Ng1 {[%clk 0:00:03]}  Bd2 {[%clk 0:00:04]} 0-1


[Site "https://www.chess.com"]

[Event "Titled Tuesday Blitz July 05 Late 2022"]
[White "Sargsyan, Anna M."]
[Black "Vakhlamov, Igor L."]
[WhiteFideId "13308130"]
[BlackFideId "24126748"]
[WhiteElo "2271"]
[BlackElo "2401"]
[Result "1/2-1/2"]
[Round "11"]
[TimeControl "180+1"]
[Date "2022.07.05"]
[WhiteClock "0:00:11"]
[BlackClock "0:00:19"]

1. d4 {[%clk 0:02:56]}  d5 {[%clk 0:03:00]} 2. c4 {[%clk 0:02:57]}  e6 {[%clk 0:03:00]} 3. Nf3 {[%clk 0:02:57]}  Nf6 {[%clk 0:03:00]} 4. Nc3 {[%clk 0:02:58]}  c5 {[%clk 0:03:00]} 5. cxd5 {[%clk 0:02:58]}  cxd4 {[%clk 0:03:00]} 6. Qxd4 {[%clk 0:02:55]}  exd5 {[%clk 0:02:51]} 7. Bg5 {[%clk 0:02:43]}  Be7 {[%clk 0:02:50]} 8. e3 {[%clk 0:02:37]}  O-O {[%clk 0:02:49]} 9. Bb5 {[%clk 0:02:30]}  h6 {[%clk 0:02:46]} 10. Bh4 {[%clk 0:02:29]}  Nc6 {[%clk 0:02:45]} 11. Bxc6 {[%clk 0:02:29]}  bxc6 {[%clk 0:02:46]} 12. O-O {[%clk 0:02:30]}  Be6 {[%clk 0:02:42]} 13. Rac1 {[%clk 0:02:30]}  c5 {[%clk 0:02:42]} 14. Qd3 {[%clk 0:02:28]}  g5 {[%clk 0:02:31]} 15. Bg3 {[%clk 0:02:28]}  Qb6 {[%clk 0:02:20]} 16. Na4 {[%clk 0:02:26]}  Qa5 {[%clk 0:02:18]} 17. b3 {[%clk 0:02:24]}  Rfd8 {[%clk 0:02:16]} 18. Ne5 {[%clk 0:02:23]}  Rac8 {[%clk 0:02:15]} 19. h4 {[%clk 0:02:18]}  Ne4 {[%clk 0:02:14]} 20. hxg5 {[%clk 0:02:12]}  hxg5 {[%clk 0:01:50]} 21. Bh2 {[%clk 0:02:08]}  c4 {[%clk 0:01:47]} 22. Qe2 {[%clk 0:01:56]}  Qd2 {[%clk 0:01:20]} 23. Qxd2 {[%clk 0:01:26]}  Nxd2 {[%clk 0:01:21]} 24. Rfd1 {[%clk 0:01:26]}  cxb3 {[%clk 0:00:45]} 25. axb3 {[%clk 0:01:23]}  Nxb3 {[%clk 0:00:43]} 26. Rb1 {[%clk 0:01:04]}  Nc5 {[%clk 0:00:42]} 27. Nc3 {[%clk 0:01:05]}  Bf6 {[%clk 0:00:27]} 28. Nb5 {[%clk 0:01:01]}  a6 {[%clk 0:00:26]} 29. Nd4 {[%clk 0:01:01]}  a5 {[%clk 0:00:16]} 30. Ndc6 {[%clk 0:00:47]}  Re8 {[%clk 0:00:16]} 31. Nxa5 {[%clk 0:00:44]}  Ne4 {[%clk 0:00:10]} 32. Rb7 {[%clk 0:00:39]}  Nc3 {[%clk 0:00:09]} 33. Re1 {[%clk 0:00:40]}  Rc5 {[%clk 0:00:05]} 34. Nac6 {[%clk 0:00:31]}  Rc8 {[%clk 0:00:04]} 35. Nd4 {[%clk 0:00:29]}  Ne4 {[%clk 0:00:01]} 36. f3 {[%clk 0:00:17]}  Rc1 {[%clk 0:00:01]} 37. Kf1 {[%clk 0:00:18]}  Rxe1+ {[%clk 0:00:01]} 38. Kxe1 {[%clk 0:00:19]}  Nc5 {[%clk 0:00:01]} 39. Nxe6 {[%clk 0:00:04]}  fxe6 {[%clk 0:00:01]} 40. Rb5 {[%clk 0:00:04]}  Bxe5 {[%clk 0:00:01]} 41. Bxe5 {[%clk 0:00:05]}  Nd3+ {[%clk 0:00:01]} 42. Kd2 {[%clk 0:00:05]}  Nxe5 {[%clk 0:00:02]} 43. f4 {[%clk 0:00:06]}  Nc4+ {[%clk 0:00:03]} 44. Kd3 {[%clk 0:00:06]}  gxf4 {[%clk 0:00:04]} 45. exf4 {[%clk 0:00:07]}  Kf7 {[%clk 0:00:05]} 46. g4 {[%clk 0:00:08]}  Kf6 {[%clk 0:00:06]} 47. Rb7 {[%clk 0:00:08]}  Rg8 {[%clk 0:00:06]} 48. g5+ {[%clk 0:00:07]}  Kg6 {[%clk 0:00:06]} 49. Kd4 {[%clk 0:00:07]}  Kf5 {[%clk 0:00:07]} 50. Rf7+ {[%clk 0:00:08]}  Kg4 {[%clk 0:00:07]} 51. Rf6 {[%clk 0:00:08]}  Re8 {[%clk 0:00:08]} 52. g6 {[%clk 0:00:08]}  Nd6 {[%clk 0:00:08]} 53. Ke5 {[%clk 0:00:07]}  Nc4+ {[%clk 0:00:09]} 54. Kd4 {[%clk 0:00:07]}  Re7 {[%clk 0:00:06]} 55. Rf7 {[%clk 0:00:07]}  Re8 {[%clk 0:00:07]} 56. g7 {[%clk 0:00:07]}  Rg8 {[%clk 0:00:07]} 57. f5 {[%clk 0:00:06]}  exf5 {[%clk 0:00:06]} 58. Kxd5 {[%clk 0:00:06]}  Ne3+ {[%clk 0:00:07]} 59. Ke5 {[%clk 0:00:06]}  Kg5 {[%clk 0:00:05]} 60. Ke6 {[%clk 0:00:04]}  Kg6 {[%clk 0:00:05]} 61. Ke5 {[%clk 0:00:04]}  Rxg7 {[%clk 0:00:06]} 62. Rxg7+ {[%clk 0:00:02]}  Kxg7 {[%clk 0:00:07]} 63. Kf4 {[%clk 0:00:03]}  Kf6 {[%clk 0:00:06]} 64. Kxe3 {[%clk 0:00:04]}  Kg5 {[%clk 0:00:06]} 65. Kf3 {[%clk 0:00:04]}  Kg6 {[%clk 0:00:07]} 66. Kf4 {[%clk 0:00:04]}  Kf6 {[%clk 0:00:08]} 67. Kf3 {[%clk 0:00:05]}  Ke6 {[%clk 0:00:09]} 68. Kf4 {[%clk 0:00:05]}  Kf6 {[%clk 0:00:10]} 69. Kf3 {[%clk 0:00:06]}  Ke5 {[%clk 0:00:10]} 70. Ke3 {[%clk 0:00:06]}  f4+ {[%clk 0:00:11]} 71. Kf3 {[%clk 0:00:07]}  Kf5 {[%clk 0:00:12]} 72. Kf2 {[%clk 0:00:08]}  Kg4 {[%clk 0:00:13]} 73. Kg2 {[%clk 0:00:08]}  Kg5 {[%clk 0:00:13]} 74. Kf3 {[%clk 0:00:08]}  Kf5 {[%clk 0:00:14]} 75. Kf2 {[%clk 0:00:09]}  Ke4 {[%clk 0:00:15]} 76. Ke2 {[%clk 0:00:09]}  f3+ {[%clk 0:00:16]} 77. Kf2 {[%clk 0:00:09]}  Kf4 {[%clk 0:00:17]} 78. Kf1 {[%clk 0:00:10]}  Ke4 {[%clk 0:00:17]} 79. Kf2 {[%clk 0:00:10]}  Kf4 {[%clk 0:00:17]} 80. Kf1 {[%clk 0:00:10]}  Kg4 {[%clk 0:00:18]} 81. Kf2 {[%clk 0:00:11]}  Kf4 {[%clk 0:00:19]} 1/2-1/2


[Site "https://www.chess.com"]

[Event "Titled Tuesday Blitz July 05 Late 2022"]
[White "Shapiro, Daniel"]
[Black "Jorajuria Mendoza, Algol"]
[WhiteFideId "2001780"]
[BlackFideId "5128897"]
[WhiteElo "2289"]
[BlackElo "1600"]
[Result "0-1"]
[Round "11"]
[TimeControl "180+1"]
[Date "2022.07.06"]
[WhiteClock "0:00:09"]
[BlackClock "0:00:02"]

1. d4 {[%clk 0:03:00]}  Nf6 {[%clk 0:02:59]} 2. c4 {[%clk 0:03:01]}  g6 {[%clk 0:03:00]} 3. Nc3 {[%clk 0:03:00]}  Bg7 {[%clk 0:03:00]} 4. e4 {[%clk 0:03:00]}  d6 {[%clk 0:03:01]} 5. Be2 {[%clk 0:03:00]}  O-O {[%clk 0:03:00]} 6. Nf3 {[%clk 0:03:00]}  c5 {[%clk 0:03:00]} 7. d5 {[%clk 0:02:59]}  e6 {[%clk 0:02:59]} 8. O-O {[%clk 0:02:51]}  exd5 {[%clk 0:02:59]} 9. cxd5 {[%clk 0:02:48]}  Nbd7 {[%clk 0:02:59]} 10. Bf4 {[%clk 0:02:40]}  Re8 {[%clk 0:02:41]} 11. Qc2 {[%clk 0:02:18]}  Ne5 {[%clk 0:02:28]} 12. Nxe5 {[%clk 0:02:05]}  dxe5 {[%clk 0:02:29]} 13. Be3 {[%clk 0:02:05]}  b6 {[%clk 0:02:21]} 14. f3 {[%clk 0:01:58]}  Nh5 {[%clk 0:02:07]} 15. Rfd1 {[%clk 0:01:50]}  Nf4 {[%clk 0:01:55]} 16. Bb5 {[%clk 0:01:48]}  Bd7 {[%clk 0:01:51]} 17. a4 {[%clk 0:01:34]}  a6 {[%clk 0:01:44]} 18. Bxd7 {[%clk 0:01:32]}  Qxd7 {[%clk 0:01:45]} 19. a5 {[%clk 0:01:32]}  bxa5 {[%clk 0:01:35]} 20. Bxc5 {[%clk 0:01:27]}  Rec8 {[%clk 0:01:21]} 21. Rxa5 {[%clk 0:01:21]}  Rab8 {[%clk 0:01:05]} 22. Be3 {[%clk 0:01:02]}  Qb7 {[%clk 0:01:01]} 23. Ra2 {[%clk 0:00:56]}  Bf8 {[%clk 0:00:44]} 24. Rda1 {[%clk 0:00:49]}  Ra8 {[%clk 0:00:26]} 25. Qd2 {[%clk 0:00:46]}  Bb4 {[%clk 0:00:16]} 26. g3 {[%clk 0:00:42]}  Nh5 {[%clk 0:00:10]} 27. Qd3 {[%clk 0:00:35]}  a5 {[%clk 0:00:10]} 28. Rd1 {[%clk 0:00:31]}  Rab8 {[%clk 0:00:07]} 29. Raa1 {[%clk 0:00:28]}  Nf6 {[%clk 0:00:07]} 30. Rac1 {[%clk 0:00:26]}  Nd7 {[%clk 0:00:07]} 31. d6 {[%clk 0:00:22]}  a4 {[%clk 0:00:04]} 32. Nxa4 {[%clk 0:00:19]}  Rxc1 {[%clk 0:00:04]} 33. Rxc1 {[%clk 0:00:19]}  Ra8 {[%clk 0:00:04]} 34. Nc3 {[%clk 0:00:18]}  Bc5 {[%clk 0:00:03]} 35. Nd5 {[%clk 0:00:16]}  Qxb2 {[%clk 0:00:03]} 36. Re1 {[%clk 0:00:09]}  Ra2 {[%clk 0:00:02]} 0-1


[Site "https://www.chess.com"]

[Event "Titled Tuesday Blitz July 05 Late 2022"]
[White "Silvestre, Christian"]
[Black "Toncheva, Nadya"]
[WhiteFideId "30956269"]
[BlackFideId "2924056"]
[WhiteElo "2362"]
[BlackElo "1888"]
[Result "0-1"]
[Round "11"]
[TimeControl "180+1"]
[Date "2022.07.06"]
[WhiteClock "0:00:09"]
[BlackClock "0:00:13"]

1. e4 {[%clk 0:02:56]}  Nf6 {[%clk 0:02:59]} 2. e5 {[%clk 0:02:56]}  Nd5 {[%clk 0:02:59]} 3. c4 {[%clk 0:02:57]}  Nb6 {[%clk 0:02:58]} 4. d4 {[%clk 0:02:54]}  d6 {[%clk 0:02:58]} 5. f4 {[%clk 0:02:53]}  g6 {[%clk 0:02:50]} 6. h3 {[%clk 0:02:50]}  Bg7 {[%clk 0:02:48]} 7. Nf3 {[%clk 0:02:50]}  O-O {[%clk 0:02:44]} 8. Nc3 {[%clk 0:02:50]}  c5 {[%clk 0:02:36]} 9. dxc5 {[%clk 0:02:34]}  dxc5 {[%clk 0:02:34]} 10. Qxd8 {[%clk 0:02:33]}  Rxd8 {[%clk 0:02:35]} 11. Be2 {[%clk 0:02:30]}  Nc6 {[%clk 0:02:24]} 12. Ne4 {[%clk 0:02:17]}  Nd4 {[%clk 0:02:22]} 13. Nxd4 {[%clk 0:02:13]}  cxd4 {[%clk 0:02:21]} 14. Bd3 {[%clk 0:01:55]}  f6 {[%clk 0:02:09]} 15. exf6 {[%clk 0:01:51]}  exf6 {[%clk 0:02:10]} 16. O-O {[%clk 0:01:48]}  f5 {[%clk 0:01:35]} 17. Ng5 {[%clk 0:01:42]}  h6 {[%clk 0:01:30]} 18. Nf3 {[%clk 0:01:41]}  Nd7 {[%clk 0:01:19]} 19. b3 {[%clk 0:01:40]}  Nc5 {[%clk 0:01:18]} 20. Rd1 {[%clk 0:01:39]}  a5 {[%clk 0:01:11]} 21. Bb2 {[%clk 0:01:37]}  b6 {[%clk 0:00:25]} 22. Ba3 {[%clk 0:01:14]}  Bb7 {[%clk 0:00:20]} 23. Bxc5 {[%clk 0:00:58]}  bxc5 {[%clk 0:00:19]} 24. Kf2 {[%clk 0:00:53]}  Be4 {[%clk 0:00:16]} 25. Rd2 {[%clk 0:00:42]}  a4 {[%clk 0:00:16]} 26. Re1 {[%clk 0:00:40]}  Re8 {[%clk 0:00:13]} 27. Rde2 {[%clk 0:00:36]}  Bc6 {[%clk 0:00:07]} 28. Ne5 {[%clk 0:00:29]}  Bxe5 {[%clk 0:00:03]} 29. Rxe5 {[%clk 0:00:28]}  axb3 {[%clk 0:00:02]} 30. axb3 {[%clk 0:00:18]}  Ra2+ {[%clk 0:00:03]} 31. R1e2 {[%clk 0:00:18]}  Rxe2+ {[%clk 0:00:02]} 32. Rxe2 {[%clk 0:00:16]}  Kf7 {[%clk 0:00:02]} 33. Ra2 {[%clk 0:00:15]}  Re7 {[%clk 0:00:02]} 34. Ra6 {[%clk 0:00:15]}  Be4 {[%clk 0:00:02]} 35. Bf1 {[%clk 0:00:13]}  Rb7 {[%clk 0:00:02]} 36. Ra5 {[%clk 0:00:12]}  Rxb3 {[%clk 0:00:03]} 37. Rxc5 {[%clk 0:00:12]}  d3 {[%clk 0:00:03]} 38. Ke3 {[%clk 0:00:07]}  Rb2 {[%clk 0:00:03]} 39. Bxd3 {[%clk 0:00:07]}  Rb3 {[%clk 0:00:03]} 40. Rc7+ {[%clk 0:00:07]}  Ke6 {[%clk 0:00:03]} 41. Kf2 {[%clk 0:00:07]}  Rxd3 {[%clk 0:00:03]} 42. c5 {[%clk 0:00:07]}  Rc3 {[%clk 0:00:03]} 43. Rg7 {[%clk 0:00:06]}  Rc2+ {[%clk 0:00:03]} 44. Ke1 {[%clk 0:00:05]}  Kf6 {[%clk 0:00:04]} 45. Rc7 {[%clk 0:00:04]}  Rxg2 {[%clk 0:00:05]} 46. c6 {[%clk 0:00:04]}  Rc2 {[%clk 0:00:05]} 47. Rd7 {[%clk 0:00:05]}  Rxc6 {[%clk 0:00:06]} 48. Rd2 {[%clk 0:00:05]}  Re6 {[%clk 0:00:07]} 49. Rb2 {[%clk 0:00:04]}  Bf3+ {[%clk 0:00:07]} 50. Kf2 {[%clk 0:00:05]}  Be4 {[%clk 0:00:07]} 51. Kg3 {[%clk 0:00:06]}  g5 {[%clk 0:00:08]} 52. Rf2 {[%clk 0:00:06]}  Rc6 {[%clk 0:00:08]} 53. fxg5+ {[%clk 0:00:06]}  hxg5 {[%clk 0:00:08]} 54. h4 {[%clk 0:00:07]}  Rc3+ {[%clk 0:00:08]} 55. Kh2 {[%clk 0:00:07]}  g4 {[%clk 0:00:09]} 56. Rb2 {[%clk 0:00:07]}  Rh3+ {[%clk 0:00:09]} 57. Kg1 {[%clk 0:00:07]}  Rh1+ {[%clk 0:00:10]} 58. Kf2 {[%clk 0:00:07]}  Rh2+ {[%clk 0:00:11]} 59. Kg3 {[%clk 0:00:07]}  Rxb2 {[%clk 0:00:12]} 60. h5 {[%clk 0:00:08]}  Kg5 {[%clk 0:00:12]} 61. h6 {[%clk 0:00:09]}  f4# {[%clk 0:00:13]} 0-1


[Site "https://www.chess.com"]